Workbook

Sheet SINGLE LIST WITH VALUES
A2: PSSHMC MEDICINE TENDER 2017-18 | F2: Ahmad Bin Qasim(Searle) | M2: Ahmad Bin Qasim(Saffron) | T2: Kaizen Pharma | AA2: Medipak | AH2: Oncolink | AO2: Pharmacons(Glitz) | AV2: Pharmacons(Ethical ) | BC2: Pharmacons(Asian Continental ) | BJ2: Pharmacons(Valor ) | BR2: Pharmacons(AMSON Vaccines&Pharma) | BY2: Pharmacons(Surge Lab & Nabi Qasim) | CF2: Pharmacons(Abbott) | CM2: Pharmacons (Cirin) | CT2: ALLONS(Novartis) | DA2: ALLONS(Pfizer) | DH2: Medicas (Danaas Pharma) | DO2: Medicas (Getz) | DV2: Medicas (Pakistan Pharma ) | EC2: Medicas (Scilife+Zamzam Corporation) | EJ2: Vikor Enterprises(Ferozson,Gsk ,Biokinas|) | EQ2: Rehman Trading Company(Sami) | EX2: Rehman Trading Company(HighNoon) | FE2: Rehman Trading Company(Shaigan+Pacific) | FL2: Rehman Trading Company(Pharmevo) | FS2: Rehman Trading Company(Mactor) | FZ2: ARSONS PHARMA | GG2: Mediserve International (Gsk) | GN2: Surgi Vision | GU2: AL Qamar (Himont) | HB2: AL Qamar (CCL Pharma) | HI2: AL Qamar (GENIX Pharma) | HP2: AL Qamar (Martin Dow) | HW2: AL Qamar (Brooks) | ID2: 3-Plus Pharma (Stanley Pharma+bajwa Pharma ) | IK2: 3-Plus Pharma( English Pharma) | IR2: Hiranis Pharma | IY2: Delta Enterprises(Novamed Pharma) | JF2: Mullar & Phipps Pakistan(Ray Pharma ) | JM2: Mullar & Phipps Pakistan(Aspin Pharma) | JT2: Mullar & Phipps Pakistan(Gsk & Novo Nordisk Pharma) | KA2: Shaheen Trader (Merck) | KH2: Umair Enterprises(Shahzeb Pharma) | KP2: Umair Enterprises(Sayyad+Lahore Pharma+Pharma W) | KX2: Platinum Pharma | LF2: PSSHMC MEDICINE TENDER 2017-18 | LK2: Babar Medicine Company(Barrett) | LR2: Babar Medicine Company(Bosch) | LY2: Babar Medicine Company(Chiesi) | MF2: Babar Medicine Company(W.Woodward) | MM2: Babar Medicine Company(Sante) | MT2: Babar Medicine Company(Chas.A.Mendoza) | NA2: Health Care Services | NH2: Sanofi | NO2: Titlis Pharma | NV2: Servier | OC2: Farmacia (Ferozsons)
A3: Sr. | B3: F.No | C3: D/F | D3: (A) Antacids/Antisecretry/Antiulcer | F3: Brand Name with strenght | G3: Dosage Form | H3: Pack Size | I3: M.R.P | J3: Offered Rate | K3: %age Discount | L3: MANFACTURER | M3: Brand Name with strenght | N3: Dosage Form | O3: Pack Size | P3: M.R.P | Q3: Offered Rate | R3: %age Discount | S3: MANFACTURER | T3: Brand Name with strenght | U3: Dosage Form | V3: Pack Size | W3: M.R.P | X3: Offered Rate | Y3: %age Discount | Z3: MANFACTURER | AA3: Brand Name with strenght | AB3: Dosage Form | AC3: Pack Size | AD3: M.R.P | AE3: Offered Rate | AF3: %age Discount | AG3: MANFACTURER | AH3: Brand Name with strenght | AI3: Dosage Form | AJ3: Pack Size | AK3: M.R.P | AL3: Offered Rate | AM3: %age Discount | AN3: MANFACTURER | AO3: Brand Name with strenght | AP3: Dosage Form | AQ3: Pack Size | AR3: M.R.P | AS3: Offered Rate | AT3: %age Discount | AU3: MANFACTURER | AV3: Brand Name with strenght | AW3: Dosage Form | AX3: Pack Size | AY3: M.R.P | AZ3: Offered Rate | BA3: %age Discount | BB3: MANFACTURER | BC3: Brand Name with strenght | BD3: Dosage Form | BE3: Pack Size | BF3: M.R.P | BG3: Offered Rate | BH3: %age Discount | BI3: MANFACTURER | BJ3: Brand Name with strenght | BK3: Dosage Form | BL3: Pack Size | BM3: M.R.P | BN3: Offered Rate | BP3: %age Discount | BQ3: MANFACTURER | BR3: Brand Name with strenght | BS3: Dosage Form | BT3: Pack Size | BU3: M.R.P | BV3: Offered Rate | BW3: %age Discount | BX3: MANFACTURER | BY3: Brand Name with strenght | BZ3: Dosage Form | CA3: Pack Size | CB3: M.R.P | CC3: Offered Rate | CD3: %age Discount | CE3: MANFACTURER | CF3: Brand Name with strenght | CG3: Dosage Form | CH3: Pack Size | CI3: M.R.P | CJ3: Offered Rate | CK3: %age Discount | CL3: MANFACTURER | CM3: Brand Name with strenght | CN3: Dosage Form | CO3: Pack Size | CP3: M.R.P | CQ3: Offered Rate | CR3: %age Discount | CS3: MANFACTURER | CT3: Brand Name with strenght | CU3: Dosage Form | CV3: Pack Size | CW3: M.R.P | CX3: Offered Rate | CY3: %age Discount | CZ3: MANFACTURER | DA3: Brand Name with strenght | DB3: Dosage Form | DC3: Pack Size | DD3: M.R.P | DE3: Offered Rate | DF3: %age Discount | DG3: MANFACTURER | DH3: Brand Name with strenght | DI3: Dosage Form | DJ3: Pack Size | DK3: M.R.P | DL3: Offered Rate | DM3: %age Discount | DN3: MANFACTURER | DO3: Brand Name with strenght | DP3: Dosage Form | DQ3: Pack Size | DR3: M.R.P | DS3: Offered Rate | DT3: %age Discount | DU3: MANFACTURER | DV3: Brand Name with strenght | DW3: Dosage Form | DX3: Pack Size | DY3: M.R.P | DZ3: Offered Rate | EA3: %age Discount | EB3: MANFACTURER | EC3: Brand Name with strenght | ED3: Dosage Form | EE3: Pack Size | EF3: M.R.P | EG3: Offered Rate | EH3: %age Discount | EI3: MANFACTURER | EJ3: Brand Name with strenght | EK3: Dosage Form | EL3: Pack Size | EM3: M.R.P | EN3: Offered Rate | EO3: %age Discount | EP3: MANFACTURER | EQ3: Brand Name with strenght | ER3: Dosage Form | ES3: Pack Size | ET3: M.R.P | EU3: Offered Rate | EV3: %age Discount | EW3: MANFACTURER | EX3: Brand Name with strenght | EY3: Dosage Form | EZ3: Pack Size | FA3: M.R.P | FB3: Offered Rate | FC3: %age Discount | FD3: MANFACTURER | FE3: Brand Name with strenght | FF3: Dosage Form | FG3: Pack Size | FH3: M.R.P | FI3: Offered Rate | FJ3: %age Discount | FK3: MANFACTURER | FL3: Brand Name with strenght | FM3: Dosage Form | FN3: Pack Size | FO3: M.R.P | FP3: Offered Rate | FQ3: %age Discount | FR3: MANFACTURER | FS3: Brand Name With Strength | FT3: Dosage Form | FU3: Pack Size | FV3: M.R.P | FW3: Offered Rate | FX3: %age Discount | FY3: MANFACTURER | FZ3: Brand Name With Strength | GA3: Dosage Form | GB3: Pack Size | GC3: M.R.P | GD3: Offered Rate | GE3: %age Discount | GF3: MANFACTURER | GG3: Brand Name With Strength | GH3: Dosage Form | GI3: Pack Size | GJ3: M.R.P | GK3: Offered Rate | GL3: %age Discount | GM3: MANFACTURER | GN3: Brand Name With Strength | GO3: Dosage Form | GP3: Pack Size | GQ3: M.R.P | GR3: Offered Rate | GS3: %age Discount | GT3: MANFACTURER | GU3: Brand Name With Strength | GV3: Dosage Form | GW3: Pack Size | GX3: M.R.P | GY3: Offered Rate | GZ3: %age Discount | HA3: MANFACTURER | HB3: Brand Name With Strength | HC3: Dosage Form | HD3: Pack Size | HE3: M.R.P | HF3: Offered Rate | HG3: %age Discount | HH3: MANFACTURER | HI3: Brand Name With Strength | HJ3: Dosage Form | HK3: Pack Size | HL3: M.R.P | HM3: Offered Rate | HN3: %age Discount | HO3: MANFACTURER | HP3: Brand Name With Strength | HQ3: Dosage Form | HR3: Pack Size | HS3: M.R.P | HT3: Offered Rate | HU3: %age Discount | HV3: MANFACTURER | HW3: Brand Name With Strength | HX3: Dosage Form | HY3: Pack Size | HZ3: M.R.P | IA3: Offered Rate | IB3: %age Discount | IC3: MANFACTURER | ID3: Brand Name With Strength | IE3: Dosage Form | IF3: Pack Size | IG3: M.R.P | IH3: Offered Rate | II3: %age Discount | IJ3: MANFACTURER | IK3: Brand Name With Strength | IL3: Dosage Form | IM3: Pack Size | IN3: M.R.P | IO3: Offered Rate | IP3: %age Discount | IQ3: MANFACTURER | IR3: Brand Name With Strength | IS3: Dosage Form | IT3: Pack Size | IU3: M.R.P | IV3: Offered Rate | IW3: %age Discount | IX3: MANFACTURER | IY3: Brand Name With Strength | IZ3: Dosage Form | JA3: Pack Size | JB3: M.R.P | JC3: Offered Rate | JD3: %age Discount | JE3: MANFACTURER | JF3: Brand Name With Strength | JG3: Dosage Form | JH3: Pack Size | JI3: M.R.P | JJ3: Offered Rate | JK3: %age Discount | JL3: MANFACTURER | JM3: Brand Name With Strength | JN3: Dosage Form | JO3: Pack Size | JP3: M.R.P | JQ3: Offered Rate | JR3: %age Discount | JS3: MANFACTURER | JT3: Brand Name With Strength | JU3: Dosage Form | JV3: Pack Size | JW3: M.R.P | JX3: Offered Rate | JY3: %age Discount | JZ3: MANFACTURER | KA3: Brand Name With Strength | KB3: Dosage Form | KC3: Pack Size | KD3: M.R.P | KE3: Offered Rate | KF3: %age Discount | KG3: MANFACTURER | KH3: Brand Name With Strength | KI3: Dosage Form | KJ3: Pack Size | KK3: M.R.P | KL3: Offered Rate | KM3: %age Discount | KN3: Market Price | KO3: MANFACTURER | KP3: Brand Name With Strength | KQ3: Dosage Form | KR3: Pack Size | KS3: M.R.P | KT3: Offered Rate | KU3: %age Discount | KV3: Market Price | KW3: MANFACTURER | KX3: Brand Name With Strength | KY3: Dosage Form | KZ3: Pack Size | LA3: M.R.P | LB3: Offered Rate | LC3: %age Discount | LD3: MANFACTURER | LF3: Sr. | LG3: F.No | LH3: D/F | LI3: (A) Antacids/Antisecretry/Antiulcer | LK3: Brand Name with strenght | LL3: Dosage Form | LM3: Pack Size | LN3: M.R.P | LO3: Offered Rate | LP3: %age Discount | LQ3: MANFACTURER | LR3: Brand Name with strenght | LS3: Dosage Form | LT3: Pack Size | LU3: M.R.P | LV3: Offered Rate | LW3: %age Discount | LX3: MANFACTURER | LY3: Brand Name with strenght | LZ3: Dosage Form | MA3: Pack Size | MB3: M.R.P | MC3: Offered Rate | MD3: %age Discount | ME3: MANFACTURER | MF3: Brand Name with strenght | MG3: Dosage Form | MH3: Pack Size | MI3: M.R.P | MJ3: Offered Rate | MK3: %age Discount | ML3: MANFACTURER | MM3: Brand Name with strenght | MN3: Dosage Form | MO3: Pack Size | MP3: M.R.P | MQ3: Offered Rate | MR3: %age Discount | MS3: MANFACTURER | MT3: Brand Name with strenght | MU3: Dosage Form | MV3: Pack Size | MW3: M.R.P | MX3: Offered Rate | MY3: %age Discount | MZ3: MANFACTURER | NA3: Brand Name with strenght | NB3: Dosage Form | NC3: Pack Size | ND3: M.R.P | NE3: Offered Rate | NF3: %age Discount | NG3: MANFACTURER | NH3: Brand Name with strenght | NI3: Dosage Form | NJ3: Pack Size | NK3: M.R.P | NL3: Offered Rate | NM3: %age Discount | NN3: MANFACTURER | NO3: Brand Name with strenght | NP3: Dosage Form | NQ3: Pack Size | NR3: M.R.P | NS3: Offered Rate | NT3: %age Discount | NU3: MANFACTURER | NV3: Brand Name with strenght | NW3: Dosage Form | NX3: Pack Size | NY3: M.R.P | NZ3: Offered Rate | OA3: %age Discount | OB3: MANFACTURER
A4: 1 | B4: 1 | C4: Susp | D4: AluHydroxide 215mg, Mag. Hydroxide 80mg, Simethicone 25mg/5ml OR Magaldrate Sod. 540mg, Simethicon 20mg/5ml | E4: 120ml | ID4: Manacid | IE4: Susp | IF4: 120ML | IG4: 34 | IH4: 27.75 | II4: =100-IH4/IG4*100 -> 18.38235294 | IJ4: Stanley Pharma | LF4: 1 | LG4: 1 | LH4: Susp | LI4: AluHydroxide 215mg, Mag. Hydroxide 80mg, Simethicone 25mg/5ml OR Magaldrate Sod. 540mg, Simethicon 20mg/5ml | LJ4: 120ml
A5: 2 | C5: Susp | D5: Simethicon | E5: 120ml | LF5: 2 | LH5: Susp | LI5: Simethicon | LJ5: 120ml
A6: 3 | B6: 2 | C6: cap | D6: Esomeprazol 20mg/40mg | E6: 14's | F6: Ezium 20mg | G6: cap | H6: 14's | I6: 170 | J6: 60 | K6: =100-J6/I6*100 -> 64.70588235 | L6: Searle | AO6: Eger 20mg | AP6: Cap | AQ6: 14's | AR6: 154 | AS6: 48.75 | AT6: =100-AS6/AR6*100 -> 68.34415584 | AU6: Glitz | BJ6: Oxilant 20mg | BK6: Cap | BL6: 14's | BM6: 119 | BN6: 98.12 | BP6: =100-BN6/BM6*100 -> 17.54621849 | BQ6: Valor | BY6: Esloprot-20mg | BZ6: CAP | CA6: 14's | CB6: 126 | CC6: 53 | CD6: =100-CC6/CB6*100 -> 57.93650794 | CE6: Nabi Qasim | CF6: Ezomol 20mg | CG6: Cap | CH6: 14's | CI6: 120.7 | CJ6: 77 | CK6: =100-CJ6/CI6*100 -> 36.2054681 | CL6: Abbott | DH6: Esodin 20mg | DI6: Cap | DJ6: 14's | DK6: 170 | DL6: 28.98 | DM6: =100-DL6/DK6*100 -> 82.95294118 | DN6: Danas Pharma | DO6: Nexum 20mg | DP6: Cap | DQ6: 14's | DR6: 172 | DS6: 84.27 | DT6: =100-DS6/DR6*100 -> 51.00581395 | DU6: Getz | DV6: Pemose 20mg | DW6: Cap | DX6: 14's | DY6: 119 | DZ6: 30.5 | EA6: =100-DZ6/DY6*100 -> 74.3697479 | EB6: Pakistan Pharma | EJ6: Esomega 20mg | EK6: Cap | EL6: 14's | EM6: 120.7 | EN6: 67 | EO6: =100-EN6/EM6*100 -> 44.49047225 | EP6: Ferozsons | EQ6: Novoteph 20mg | ER6: Cap | ES6: 14's | ET6: 119 | EU6: 45.08 | EV6: =100-EU6/ET6*100 -> 62.11764706 | EW6: Sami | EX6: Axesom 20mg | EY6: Cap | EZ6: 14'S | FA6: 120.7 | FB6: 51.3 | FC6: =100-FB6/FA6*100 -> 57.49792875 | FD6: Highnoon | FE6: Esso 20mg | FF6: Cap | FG6: 14'S | FH6: 161 | FI6: 68 | FJ6: =100-FI6/FH6*100 -> 57.76397516 | FK6: Shaigan | FL6: Fasteso 20mg | FM6: Cap | FN6: 14's | FO6: 172.43 | FP6: 43.68 | FQ6: =100-FP6/FO6*100 -> 74.66798121 | FR6: PharmEvo | FZ6: Reciper 20mg | GA6: Cap | GB6: 14's | GC6: 119 | GD6: 16.8 | GE6: =100-GD6/GC6*100 -> 85.88235294 | GF6: Arsons Pharma | HI6: Zoleric 20/40mg | HJ6: Cap | HK6: 14's | HL6: 168/252.01 | HM6: 63.5/103.50 | HN6: =HM6100-HM6/HL6*100 ->  | HO6: GENIX | HP6: Esomax 20MG/40mg | HQ6: Cap | HR6: 14's | HS6: 154/252.01 | HT6: 111.27/182.07 | HU6: =100-HT6/HS6*100 ->  | HV6: Martin Dow | HW6: E-Cap 20mg/40mg | HX6: Cap | HY6: 14's | HZ6: 100/150 | IA6: 40/45 | IB6: =100-IA6/HZ6*100 ->  | IC6: Brooks | ID6: E-Z 20mg | IE6: Cap | IF6: 14's | IG6: 119 | IH6: 50 | II6: =100-IH6/IG6*100 -> 57.98319328 | IJ6: Stanley Pharma | IR6: Lomac 20MG | IS6: Cap | IT6: 14's | IU6: 120.7 | IV6: 48 | IW6: =100-IV6/IU6*100 -> 60.23198012 | IX6: Hiranis Pharma | JD6: =100-JC6/JB6*100 ->  | JF6: Rayparazole 20mg | JG6: Cap | JH6: 14's | JI6: 120.7 | JJ6: 76.95 | JK6: =100-JJ6/JI6*100 -> 36.24689312 | JL6: Ray Pharma | KA6: Esvin 20mg | KB6: Cap | KC6: 14's | KD6: 120.71 | KE6: 97.47 | KF6: =100-KE6/KD6*100 -> 19.25275454 | KG6: Merck | KP6: Syzazole 40mg | KQ6: Cap | KR6: 14's | KS6: 168 | KT6: 60.2 | KU6: =100-KT6/KS6*100 -> 64.16666667 | KW6: Sayyad Pharma | LF6: 3 | LG6: 2 | LH6: cap | LI6: Esomeprazol 20mg/40mg | LJ6: 14's | LK6: Acireg | LL6: cap | LM6: 14's | LN6: 163.31 | LO6: 49.5 | LP6: =100-LO6/LN6*100 -> 69.68954749 | LQ6: Barrett | LR6: Somezol | LS6: Cap | LT6: 14's | LU6: 126 | LV6: 91.04 | LW6: =100-LV6/LU6*100 -> 27.74603175 | LX6: Bosch | MF6: Aldis 20/40 | MG6: Caps | MH6: 14's | MI6: 119/198 | MJ6: 91.01/151.47 | MK6: =100-MJ6/MI6*100 ->  | ML6: Wood Words | MT6: Essocam 20/40mg | MU6: caps | MV6: 14's | MW6: 119/198 | MX6: 91.1/151.47 | MY6: =100-MX6/MW6*100 ->  | MZ6: Chas.A.Mendoza | NA6: Gocid 20/40mg | NB6: Caps | NC6: 14's | ND6: 160/255 | NE6: 56/70 | NF6: =100-NE6/ND6*100 ->  | NG6: Wilson's | NO6: Zolpip 20/40mg | NP6: Caps | NQ6: 14's | NR6: 120.70/ | NS6: 33.5 | NT6: =100-NS6/NR6*100 ->  | NU6: Titlis
A7: 4 | B7: 3 | C7: Cap | D7: Pantoprazole 40mg | E7: 14's | LF7: 4 | LG7: 3 | LH7: Cap | LI7: Pantoprazole 40mg | LJ7: 14's
A8: 5 | B8: 4 | C8: inj | D8: Esomeprazol 40MG | E8: vial | DO8: Nexum IV | DP8: Inj | DQ8: 1's | DR8: 304 | DS8: 87 | DT8: =100-DS8/DR8*100 -> 71.38157895 | DU8: Getz | LF8: 5 | LG8: 4 | LH8: inj | LI8: Esomeprazol 40MG | LJ8: vial | LR8: Somezol Inf | LU8: 250 | LV8: 159.38 | LW8: =100-LV8/LU8*100 -> 36.248 | LX8: Bosch
A9: 6 | B9: 5 | C9: tab | D9: Mag. Trisilicate + Dried Alu Hydroxide | E9: 100's | LF9: 6 | LG9: 5 | LH9: tab | LI9: Mag. Trisilicate + Dried Alu Hydroxide | LJ9: 100's
A10: 7 | B10: 6 | C10: cap | D10: Omeprazole 20mg | E10: 14's | M10: Noctis 20mg | N10: Cap | O10: 14's | P10: 146.06 | Q10: 50 | R10: =100-Q10/P10*100 -> 65.76749281 | S10: Saffron | AO10: Zoglit 20mg | AP10: Cap | AQ10: 14's | AR10: 144 | AS10: 56 | AT10: =100-AS10/AR10*100 -> 61.11111111 | AU10: Glitz | BJ10: Omepraval 20mg | BK10: Cap | BL10: 14's | BM10: 144 | BN10: 118.73 | BP10: =100-BN10/BM10*100 -> 17.54861111 | BQ10: Valor | BR10: Omepral 20mg | BS10: Cap | BT10: 14's | BU10: 145 | BV10: 75 | BW10: =100-BV10/BU10*100 -> 48.27586207 | BX10: Amsons | CM10: Omepral 20mg | CN10: Cap | CO10: 14's | CP10: 145 | CQ10: 75 | CR10: =100-CQ10/CP10*100 -> 48.27586207 | CS10: Cirin | DH10: Omenza 20mg | DI10: Cap | DJ10: 14's | DK10: 144 | DL10: 25.76 | DM10: =100-DL10/DK10*100 -> 82.11111111 | DN10: Danas Pharma | DO10: Risek 20mg | DP10: Cap | DQ10: 14'S | DR10: 216 | DS10: 41 | DT10: =100-DS10/DR10*100 -> 81.01851852 | DU10: Getz | DV10: Cibra 20mg | DW10: Cap | DX10: 14's | DY10: 103 | DZ10: 20 | EA10: =100-DZ10/DY10*100 -> 80.58252427 | EB10: Pakistan Pharma | EJ10: Omega 20mg | EK10: Cap | EL10: 14's | EM10: 195 | EN10: 52 | EO10: =100-EN10/EM10*100 -> 73.33333333 | EP10: Ferozsons | EQ10: Teph 20mg | ER10: Cap | ES10: 14's | ET10: 170 | EU10: 40 | EV10: =100-EU10/ET10*100 -> 76.47058824 | EW10: Sami | FL10: Zoltar 40mg | FM10: Inf | FN10: 1'S | FO10: 240 | FP10: 106 | FQ10: =100-FP10/FO10*100 -> 55.83333333 | FR10: PharmEvo | FZ10: Romeprazole 20mg | GA10: Cap | GB10: 100's | GC10: 944 | GD10: 110 | GE10: =100-GD10/GC10*100 -> 88.34745763 | GF10: Arsons Pharma | HI10: Mep 20mg | HJ10: Cap | HK10: 14's | HL10: 146.06 | HM10: 55 | HN10: =100-HM10/HL10*100 -> 62.34424209 | HO10: GENIX | HW10: Omesec 20mg | HX10: Cap | HY10: 14's | HZ10: 130 | IA10: 35 | IB10: =100-IA10/HZ10*100 -> 73.07692308 | IC10: Brooks | ID10: Perl 20mg | IE10: Cap | IF10: 14's | IG10: 140 | IH10: 109 | II10: =100-IH10/IG10*100 -> 22.14285714 | IJ10: Stanley Pharma | IK10: Zolat 20mg | IL10: Cap | IM10: 14's | IN10: 131 | IO10: 35 | IP10: =100-IO10/IN10*100 -> 73.28244275 | IQ10: English Pharma | IY10: O-Zole 20mg | IZ10: Cap | JA10: 14's | JB10: 144 | JC10: 31.5 | JD10: =100-JC10/JB10*100 -> 78.125 | JE10: Novamed | KA10: Omelcid 20mg | KB10: Cap | KC10: 14's | KD10: 188.64 | KE10: 155.53 | KF10: =100-KE10/KD10*100 -> 17.55195081 | KG10: Merck | KP10: Sydrol | KQ10: Cap | KR10: 14's | KS10: 130 | KT10: 37.8 | KU10: =100-KT10/KS10*100 -> 70.92307692 | KW10: Sayyad Pharma | LF10: 7 | LG10: 6 | LH10: cap | LI10: Omeprazole 20/40mg | LJ10: 14's | LR10: Omezol | LS10: Cap | LT10: 14's | LU10: 154 | LV10: 95.56 | LW10: =100-LV10/LU10*100 -> 37.94805195 | LX10: Bosch | MF10: Delka 20/40mg | MG10: Cap | MH10: 14's | MI10: 144/250 | MJ10: 110.16/191.25 | MK10: =100-MJ10/MI10*100 ->  | ML10: Wood Words | NA10: Encid 20mg | NB10: caps | NC10: 14's | ND10: 185 | NE10: 70 | NF10: =100-NE10/ND10*100 -> 62.16216216 | NG10: Wilson's | NO10: Titrazole 20mg | NP10: Casp | NQ10: 14's | NR10: 146.06 | NS10: 29 | NT10: =100-NS10/NR10*100 -> 80.14514583 | NU10: Titlis
A11: 8 | B11: 7 | C11: Infusion | D11: Omeprazole Sodium 42.6mg quivalent to Omeprazole 40mg | E11: 5's | EQ11: Teph 40mg | ER11: Inf | ES11: 1'S | ET11: 290 | EU11: 80 | EV11: =100-EU11/ET11*100 -> 72.4137931 | EW11: Sami | IK11: Zolat 40mg | IL11: inj | IM11: 1's | IN11: 255 | IO11: 70 | IP11: =100-IO11/IN11*100 -> 72.54901961 | IQ11: English Pharma | LF11: 8 | LG11: 7 | LH11: Infusion | LI11: Omeprazole Sodium 42.6mg quivalent to Omeprazole 40mg | LJ11: 5's | MF11: Delka 40mg | MG11: Inj | MH11: 1's | MI11: 300 | MJ11: 229.5 | MK11: 23.5 | ML11: Wood Words
A12: 9 | B12: 8 | C12: Tab | D12: Ranitidine 150mg | E12: 10's | BY12: Pepticure 150mg | BZ12: Tab | CA12: 10's | CB12: 31 | CC12: 26 | CD12: =100-CC12/CB12*100 -> 16.12903226 | CE12: Nabi Qasim | DH12: Nitid 150mg | DI12: Tab | DJ12: 10's | DK12: 56 | DL12: 20.7 | DM12: =100-DL12/DK12*100 -> 63.03571429 | DN12: Danas Pharma | DV12: Rantid 150mg | DW12: Tab | DX12: 10's | DY12: 80 | DZ12: 22.9 | EA12: =100-DZ12/DY12*100 -> 71.375 | EB12: Pakistan Pharma | KA12: Ranulcid 150mg | KB12: Tab | KC12: 10's | KD12: 68.4 | KE12: 56.4 | KF12: =100-KE12/KD12*100 -> 17.54385965 | KG12: Merck | LF12: 9 | LG12: 8 | LH12: Tab | LI12: Ranitidine 150mg | LJ12: 10's | LR12: Nulcer 150mg | LS12: Tabs | LT12: 10's | LU12: 85 | LV12: 54.19 | LW12: =100-LV12/LU12*100 -> 36.24705882 | LX12: Bosch | NA12: Peptinil | NB12: TABS | NC12: 10's | ND12: 75 | NE12: 40 | NF12: =100-NE12/ND12*100 -> 46.66666667 | NG12: Wilson's
A13: 10 | C13: Tab | D13: Sodamint | LF13: 10 | LH13: Tab | LI13: Sodamint
A14: 11 | B14: 9 | C14: Inj. | D14: Ranitidine 50mg/2ml | E14: 5's | DH14: Nitid 50mg | DI14: inj | DJ14: 10's | DK14: 120 | DL14: 37.95 | DM14: =100-DL14/DK14*100 -> 68.375 | DN14: Danas Pharma | LF14: 11 | LG14: 9 | LH14: Inj. | LI14: Ranitidine 50mg/2ml | LJ14: 5's | LR14: Nulcer | LS14: Inj | LT14: 5's | LU14: 110 | LV14: 70.13 | LW14: =100-LV14/LU14*100 -> 36.24545455 | LX14: Bosch
A15: 12 | B15: 10 | C15: Tab | D15: Serratiopeptidase 5mg/10mg | E15: 20's | BC15: Conzyme 5/10/15 | BD15: Tablet | BE15: 20's | BF15: 110/195/290 | BG15: 82.5/148/220 | BH15: =100-BG15/BF15*100 ->  | BI15: Asian Continental | IR15: Mirazym -DS10mg | IS15: Tab | IT15: 20's | IU15: 210 | IV15: 99 | IW15: =100-IV15/IU15*100 -> 52.85714286 | IX15: Hiranis Pharma | LF15: 12 | LG15: 10 | LH15: Tab | LI15: Serratiopeptidase 5mg/10mg | LJ15: 20's
A16: 13 | B16: 11 | C16: Susp | D16: Sucralfate | E16: 60ml | F16: Surlka | G16: Susp | H16: 60ml | I16: 92 | J16: 62.56 | K16: =100-J16/I16*100 -> 32 | L16: Searle | LF16: 13 | LG16: 11 | LH16: Susp | LI16: Sucralfate | LJ16: 60ml
A17: 14 | D17: (B) Antispasmodic/Anticholinergic | LF17: 14 | LI17: (B) Antispasmodic/Anticholinergic
A18: 15 | B18: 12 | C18: Tab | D18: Hyoscine-N-Butyl Bromide 10mg OR Hyoscine-N-Butyl Bromide 10mg | E18: 100's | KA18: Buscopan Plus | KB18: Tab | KC18: 100's | KD18: 390 | KE18: 331.5 | KF18: =100-KE18/KD18*100 -> 15 | KG18: Merck | LF18: 15 | LG18: 12 | LH18: Tab | LI18: Hyoscine-N-Butyl Bromide 10mg OR Hyoscine-N-Butyl Bromide 10mg | LJ18: 100's
A19: 16 | B19: 13 | C19: Syp | D19: Hyoscine-N-Butyl Bromide 10mg OR Hyoscine-N-Butyl Bromide 10mg+Metamezole 50mg | E19: 60ml | LF19: 16 | LG19: 13 | LH19: Syp | LI19: Hyoscine-N-Butyl Bromide 10mg OR Hyoscine-N-Butyl Bromide 10mg+Metamezole 50mg | LJ19: 60ml
A20: 17 | B20: 14 | C20: Tab | D20: Mebeverine 135mg | E20: 30's | AO20: Baver 135mg | AP20: Tablet | AQ20: 30's | AR20: 130 | AS20: 110 | AT20: =100-AS20/AR20*100 -> 15.38461538 | AU20: Glitz | BY20: Colospas 135mg | BZ20: Tablet | CA20: 30's | CB20: 178.5 | CC20: 151.73 | CD20: =100-CC20/CB20*100 -> 14.99719888 | CE20: Nabi Qasim | CF20: Colofec 135mg | CG20: Tab | CH20: 30's | CI20: 236.84 | CJ20: 201.31 | CK20: =100-CJ20/CI20*100 -> 15.0016889 | CL20: Abbott | LF20: 17 | LG20: 14 | LH20: Tab | LI20: Mebeverine 135mg | LJ20: 30's
A21: 18 | B21: 15 | C21: cap | D21: Mebeverine 200mg SR | E21: 30's | LF21: 18 | LG21: 15 | LH21: cap | LI21: Mebeverine 200mg SR | LJ21: 30's
A22: 19 | B22: 16 | C22: Inj. | D22: Trimethylphloroglucinol+phloroglucinol80mg | E22: 6's | LF22: 19 | LG22: 16 | LH22: Inj. | LI22: Trimethylphloroglucinol+phloroglucinol80mg | LJ22: 6's
A23: 20 | B23: 17 | C23: Tab | D23: Trimethylphloroglucinol+phloroglucinol 40mg | E23: 30's | LF23: 20 | LG23: 17 | LH23: Tab | LI23: Trimethylphloroglucinol+phloroglucinol 40mg | LJ23: 30's
A24: 21 | D24: (C) Anti-Diarrhoeals | LF24: 21 | LI24: (C) Anti-Diarrhoeals
A25: 22 | B25: 18 | C25: Susp | D25: Kaolin Pectin | E25: 90ml | LF25: 22 | LG25: 18 | LH25: Susp | LI25: Kaolin Pectin | LJ25: 90ml
A26: 23 | B26: 19 | C26: Sachet | D26: ORS contains: NaCl 3.5gm, Sod. Citrate 2.9gm, KCI. 1.5gm, Dextrose Anhydrous 20gm | E26: 40's | F26: Peditral Sachet(Lemon&lime) | G26: Sachet | H26: 1's | I26: 18 | J26: 13 | K26: =100-J26/I26*100 -> 27.77777778 | L26: Searle | AO26: Oragil | AP26: Sachet | AQ26: 20's | AR26: 220 | AS26: 187 | AT26: =100-AS26/AR26*100 -> 15 | AU26: Glitz | BJ26: Valosal | BK26: Sachet | BL26: 20'S | BM26: 200 | BN26: 164.9 | BP26: =100-BN26/BM26*100 -> 17.55 | BQ26: Valor | LF26: 23 | LG26: 19 | LH26: Sachet | LI26: ORS contains: NaCl 3.5gm, Sod. Citrate 2.9gm, KCI. 1.5gm, Dextrose Anhydrous 20gm | LJ26: 40's | NA26: Orasal -F | NB26: Sachets | NC26: 20's | ND26: 200 | NE26: 120 | NF26: =100-NE26/ND26*100 -> 40 | NG26: Wilson's
A27: 24 | B27: 20 | C27: Powder | D27: Dioctahedral Smectite 3 gm | E27: Sachet | LF27: 24 | LG27: 20 | LH27: Powder | LI27: Dioctahedral Smectite 3 gm | LJ27: Sachet | MF27: Diosecta | MG27: Powder | MH27: 30's | MI27: 318 | MJ27: 243.27 | MK27: =100-MJ27/MI27*100 -> 23.5 | ML27: Wood Words
A28: 25 | B28: 21 | C28: Tab | D28: Diphenoxylate HCL 2.5 mg +Atropine Sulphate 25 mcg | E28: 10's | LF28: 25 | LG28: 21 | LH28: Tab | LI28: Diphenoxylate HCL 2.5 mg +Atropine Sulphate 25 mcg | LJ28: 10's
A29: 26 | B29: 22 | C29: Susp | D29: Zinc sulphate suspension | E29: 60ml | F29: Diazinc 20mg | G29: Syp | H29: 60ml | I29: 62 | J29: 32 | K29: =100-J29/I29*100 -> 48.38709677 | L29: Searle | AO29: Ziglit | AP29: Syrup | AQ29: 60ml | AR29: 50 | AS29: 39 | AT29: =100-AS29/AR29*100 -> 22 | AU29: Glitz | HI29: Zn-Once | HJ29: Syp | HK29: 60ml | HL29: 60.86 | HM29: 29.5 | HN29: =100-HM29/HL29*100 -> 51.52809727 | HO29: GENIX | KP29: Zincaphate | KQ29: Susp | KR29: 60ml | KS29: 45 | KT29: 28 | KU29: =100-KT29/KS29*100 -> 37.77777778 | KW29: Sayyad Pharma | LF29: 26 | LG29: 22 | LH29: Susp | LI29: Zinc sulphate suspension | LJ29: 60ml
A30: 27 | D30: (D) Anti-Amoebics | LF30: 27 | LI30: (D) Anti-Amoebics
A31: 28 | B31: 23 | C31: Tab | D31: Diloxanide Fuorate 500mg + Metronidazole 400mg | E31: 15,s | ID31: Zolt Ds | IE31: Tab | IF31: 15'S | IG31: 74 | IH31: 62.75 | II31: =100-IH31/IG31*100 -> 15.2027027 | IJ31: Stanley Pharma | LF31: 28 | LG31: 23 | LH31: Tab | LI31: Diloxanide Fuorate 500mg + Metronidazole 400mg | LJ31: 15,s
A32: 29 | B32: 24 | C32: Susp | D32: Diloxanidefuroate 250mg + Metronidazole 200mg/10ml | E32: 60ml | ID32: Zolt | IE32: Susp | IF32: 90ml | IG32: 52 | IH32: 44 | II32: 15.38461538 | IJ32: Stanley Pharma | LF32: 29 | LG32: 24 | LH32: Susp | LI32: Diloxanidefuroate 250mg + Metronidazole 200mg/10ml | LJ32: 60ml
A33: 30 | B33: 25 | C33: tab | D33: Metronidazole 200mg | E33: 200's | F33: Metrozine 200mg | G33: Tab | H33: 100's | I33: 113 | J33: 96.05 | K33: =100-J33/I33*100 -> 15 | L33: Searle | LF33: 30 | LG33: 25 | LH33: tab | LI33: Metronidazole 200mg | LJ33: 200's
A34: 31 | B34: 26 | C34: tab | D34: Metronidazole 400mg | E34: 200's | F34: Metrozine 400mg | G34: Tab | H34: 100's | I34: 169 | J34: 125 | K34: =100-J34/I34*100 -> 26.03550296 | L34: Searle | AO34: Granid 400mg | AP34: Tablet | AQ34: 10*10's | AR34: 150 | AS34: 127 | AT34: =100-AS34/AR34*100 -> 15.33333333 | AU34: Glitz | ID34: Riam 400mg | IE34: Tab | IF34: 100's | IG34: 157.5 | IH34: 128 | II34: =100-IH34/IG34*100 -> 18.73015873 | IJ34: Stanley Pharma | LF34: 31 | LG34: 26 | LH34: tab | LI34: Metronidazole 400mg | LJ34: 200's
A35: 32 | B35: 27 | C35: Susp | D35: Metronidazole 200mg/5ml | E35: 60ml | F35: Metrozine | G35: Susp | H35: 90ml | I35: 51 | J35: 38.15 | K35: =100-J35/I35*100 -> 25.19607843 | L35: Searle | ID35: Riam | IE35: Susp | IF35: 60ml | IG35: 49 | IH35: 38.35 | II35: 21.73469388 | IJ35: Stanley Pharma | LF35: 32 | LG35: 27 | LH35: Susp | LI35: Metronidazole 200mg/5ml | LJ35: 60ml
A36: 33 | B36: 28 | C36: Infusion | D36: Metronidazole 500mg/10ml | E36: infusion | F36: Metrozine RFU IV | G36: Inf | H36: 100ml | I36: 79 | J36: 63.8 | K36: =100-J36/I36*100 -> 19.24050633 | L36: Searle | GN36: Diazol 400mg | GO36: Inj | GP36: 50's | GQ36: 78 | GR36: 58 | GS36: =100-GR36/GQ36*100 -> 25.64102564 | GT36: B.Braun | KH36: Zee Met | KI36: infusion | KJ36: 100ml | KK36: 67 | KL36: 32.25 | KM36: =100-KL36/KK36*100 -> 51.86567164 | KO36: Shahzeb Pharma | LF36: 33 | LG36: 28 | LH36: Infusion | LI36: Metronidazole 500mg/10ml | LJ36: infusion | LR36: Flazol | LS36: Vial | LT36: 1's | LU36: 78 | LV36: 47.74 | LW36: =100-LV36/LU36*100 -> 38.79487179 | LX36: Bosch
A37: 34 | D37: (E) Anthelmentics | LF37: 34 | LI37: (E) Anthelmentics
A38: 35 | B38: 29 | C38: Susp | D38: Albendazole 100mg/5ml | E38: 10ml | EJ38: Zentel | EK38: Susp | EL38: 1's | EM38: 22.29 | EN38: 18.38 | EO38: =100-EN38/EM38*100 -> 17.54149843 | EP38: Gsk | ID38: Bendazole | IE38: Susp | IF38: 10ml | IG38: 25 | IH38: 20.45 | II38: =100-IH38/IG38*100 -> 18.2 | IJ38: Stanley Pharma | LF38: 35 | LG38: 29 | LH38: Susp | LI38: Albendazole 100mg/5ml | LJ38: 10ml
A39: 36 | B39: 30 | C39: Tab | D39: Albendazole 200mg | E39: 2's | AO39: Aliz 200mg | AP39: Tablet | AQ39: 2's | AR39: 17 | AS39: 14 | AT39: =100-AS39/AR39*100 -> 17.64705882 | AU39: Glitz | EJ39: Zentel 200mg | EK39: Tab | EL39: 2's | EM39: 20.52 | EN39: 16.91 | EO39: =100-EN39/EM39*100 -> 17.59259259 | EP39: Gsk | ID39: Bendazole | IE39: Tab | IF39: 2's | IG39: 17.84 | IH39: 14.65 | II39: 17.88116592 | IJ39: Stanley Pharma | LF39: 36 | LG39: 30 | LH39: Tab | LI39: Albendazole 200mg | LJ39: 2's | MF39: Vermol SD | MG39: Tab | MH39: 1's | MI39: 21.5 | MJ39: 16.45 | MK39: =100-MJ39/MI39*100 -> 23.48837209 | ML39: Wood Words
A40: 37 | B40: 31 | C40: tab | D40: Mebendazole 100mg | E40: 30's | JM40: Vermox 100mg | JN40: Tab | JO40: 60's | JP40: 263.72 | JQ40: 217.44 | JR40: =100-JQ40/JP40*100 -> 17.54891552 | JS40: Aspin Pharma | LF40: 37 | LG40: 31 | LH40: tab | LI40: Mebendazole 100mg | LJ40: 30's
A41: 38 | B41: 32 | C41: Susp | D41: Mebendazole 100mg/5ml | E41: 30ml | JM41: Vermox Syp | JN41: Syp | JO41: 30ml | JP41: 40.57 | JQ41: 34.49 | JR41: 14.98644318 | JS41: Aspin Pharma | LF41: 38 | LG41: 32 | LH41: Susp | LI41: Mebendazole 100mg/5ml | LJ41: 30ml | MF41: Vermol | MG41: Susp | MH41: 30ml | MI41: 40 | MJ41: 30.6 | MK41: =100-MJ41/MI41*100 -> 23.5 | ML41: Wood Words
A42: 39 | B42: 33 | C42: Tab | D42: Mebendazole 500 mg | E42: 1's | JM42: Vermox 500mg | JN42: Tab | JO42: 12's | JP42: 263.72 | JQ42: 217.44 | JR42: 17.54891552 | JS42: Aspin Pharma | LF42: 39 | LG42: 33 | LH42: Tab | LI42: Mebendazole 500 mg | LJ42: 1's
A43: 40 | D43: (F) Laxatives/Purgatives/Lubricants/ | LF43: 40 | LI43: (F) Laxatives/Purgatives/Lubricants/
A44: 41 | B44: 34 | C44: Tab | D44: Bisacodyl 5mg | E44: 100's | LF44: 41 | LG44: 34 | LH44: Tab | LI44: Bisacodyl 5mg | LJ44: 100's
A45: 42 | B45: 35 | C45: cap | D45: Calcium Dobesilate 500mg | E45: 30's | LF45: 42 | LG45: 35 | LH45: cap | LI45: Calcium Dobesilate 500mg | LJ45: 30's
A46: 43 | B46: 36 | C46: Liq | D46: Kleen Enema/Instant/Enema Ready Liq. Sod. Bisulphate 19.2mg. Sod. Phosphate 7.2mg/120ml | E46: 120ml | BY46: Kleen Enema | BZ46: Enema | CA46: 135ml | CB46: 49.76 | CC46: 42.3 | CD46: =100-CC46/CB46*100 -> 14.99196141 | CE46: Nabi Qasim | LF46: 43 | LG46: 36 | LH46: Liq | LI46: Kleen Enema/Instant/Enema Ready Liq. Sod. Bisulphate 19.2mg. Sod. Phosphate 7.2mg/120ml | LJ46: 120ml
A47: 44 | B47: 37 | C47: Susp | D47: Lactulose 3.35mg/5ml | E47: 120ml | AO47: Lactogiz | AP47: Syp | AQ47: 120ml | AR47: 148 | AS47: 125.8 | AT47: =100-AS47/AR47*100 -> 15 | AU47: Glitz | BC47: Kolac | BD47: Syp | BE47: 120ml | BF47: 148 | BG47: 97.45 | BH47: =100-BG47/BF47*100 -> 34.15540541 | BI47: Asian Continental | DO47: Lilac | DP47: SYP | DQ47: 1'S | DR47: 150 | DS47: 88.99 | DT47: =100-DS47/DR47*100 -> 40.67333333 | DU47: Getz | HW47: B-Lact | HX47: Syp | HY47: 120ml | HZ47: 150.02 | IA47: 93 | IB47: =100-IA47/HZ47*100 -> 38.00826556 | IC47: Brooks | LF47: 44 | LG47: 37 | LH47: Susp | LI47: Lactulose 3.35mg/5ml | LJ47: 120ml
A48: 45 | B48: 38 | C48: Liq | D48: Magnesium Hydroxide 75% V/V + Liq Paraffin 25 % V/ V | E48: 120ml | LF48: 45 | LG48: 38 | LH48: Liq | LI48: Magnesium Hydroxide 75% V/V + Liq Paraffin 25 % V/ V | LJ48: 120ml
A49: 46 | B49: 39 | C49: drops | D49: Sod. Picosuphate 7.5mg | E49: 15ml | LF49: 46 | LG49: 39 | LH49: drops | LI49: Sod. Picosuphate 7.5mg | LJ49: 15ml
A50: 47 | C50: Supos | D50: Glycerine Suppository | LF50: 47 | LH50: Supos | LI50: Glycerine Suppository
A51: 48 | D51: (G) Drugs Acting on Liver: | LF51: 48 | LI51: (G) Drugs Acting on Liver:
A52: 49 | B52: 40 | C52: Inf | D52: Betaine Glucourinate, Diethanolamine Gluconate & Nicotinamide | E52: 10ml | LF52: 49 | LG52: 40 | LH52: Inf | LI52: Betaine Glucourinate, Diethanolamine Gluconate & Nicotinamide | LJ52: 10ml
A53: 50 | B53: 41 | C53: Syp | D53: Betaine Glucourinate, Diethanolamine Gluconate & Nicotinamide | E53: 60ml | LF53: 50 | LG53: 41 | LH53: Syp | LI53: Betaine Glucourinate, Diethanolamine Gluconate & Nicotinamide | LJ53: 60ml
A54: 51 | B54: 42 | C54: Infusion | D54: Ornithine Aspartate 500mg/5ml. | E54: 5ml/Amp | HW54: Hepa-Merz | HX54: Inf | HY54: 1'S | HZ54: 211.8 | IA54: 135 | IB54: =100-IA54/HZ54*100 -> 36.26062323 | IC54: Brooks | LF54: 51 | LG54: 42 | LH54: Infusion | LI54: Ornithine Aspartate 500mg/5ml. | LJ54: 5ml/Amp
A55: 52 | B55: 43 | C55: Syp | D55: Ornithine Aspartate 60mg, Nicotinamide 4.8mg, Riboflavin-5 Phosphate Sod. 0.153mg/ml | E55: 120ml | HI55: Enervin | HJ55: Susp | HK55: 120ML | HL55: 159.05 | HM55: 120 | HN55: =100-HM55/HL55*100 -> 24.55202766 | HO55: GENIX | HW55: Hepa-Merz | HX55: Syrup | HY55: 1's | HZ55: 147.85 | IA55: 112 | IB55: 24.24754819 | IC55: Brooks | LF55: 52 | LG55: 43 | LH55: Syp | LI55: Ornithine Aspartate 60mg, Nicotinamide 4.8mg, Riboflavin-5 Phosphate Sod. 0.153mg/ml | LJ55: 120ml
A56: 53 | B56: 44 | C56: Tab | D56: Pancreatin 210 P.U. + Bromelain 35,000 PU, Dimethylopysiloxane 50mg+Sodium Dehydrocholate 20mg + Metoclopramide 6mg | E56: 30's | LF56: 53 | LG56: 44 | LH56: Tab | LI56: Pancreatin 210 P.U. + Bromelain 35,000 PU, Dimethylopysiloxane 50mg+Sodium Dehydrocholate 20mg + Metoclopramide 6mg | LJ56: 30's
A57: 54 | B57: 45 | C57: syp | D57: silymarine | E57: 60ml | LF57: 54 | LG57: 45 | LH57: syp | LI57: silymarine | LJ57: 60ml
A58: 55 | B58: 46 | C58: tab | D58: Silymarine 200 mg | E58: 30's | BR58: Silimarin 200mg | BS58: Tab | BT58: 20's | BU58: 245 | BV58: 125 | BW58: =100-BV58/BU58*100 -> 48.97959184 | BX58: Amsons | CF58: Silliver 200mg | CG58: Tab | CH58: 30's | CI58: 206.91 | CJ58: 175.87 | CK58: =100-CJ58/CI58*100 -> 15.00169156 | CL58: Abbott | LF58: 55 | LG58: 46 | LH58: tab | LI58: Silymarine 200 mg | LJ58: 30's
A59: 56 | C59: Syp | D59: Silymarine 105 mg +Vitamine B-1 8mg +B-12 25mcg +Calcium Pentothenate 16 mg, B-2 8mg ,B-6 8mg,nicotinamide24mg/ 5ml | LF59: 56 | LH59: Syp | LI59: Silymarine 105 mg +Vitamine B-1 8mg +B-12 25mcg +Calcium Pentothenate 16 mg, B-2 8mg ,B-6 8mg,nicotinamide24mg/ 5ml | MT59: Heptocam | MU59: Syp | MV59: 60mL | MW59: 71.5 | MX59: 54.7 | MY59: =100-MX59/MW59*100 -> 23.4965035 | MZ59: Chas.A.Mendoza
A60: 57 | D60: (H) Anti-Emetic/Anti-Nauseants: | LF60: 57 | LI60: (H) Anti-Emetic/Anti-Nauseants:
A61: 58 | B61: 47 | C61: inj | D61: Chlorpromazine HCL 25mg/ml (2ml Amp) | E61: Amp | LF61: 58 | LG61: 47 | LH61: inj | LI61: Chlorpromazine HCL 25mg/ml (2ml Amp) | LJ61: Amp
A62: 59 | B62: 48 | C62: syp | D62: Dimenhydrinate 12.5mg/4ml | E62: 60ml | F62: Gravinate | G62: Liquid | H62: 60ml | I62: 40 | J62: 32.3 | K62: =100-J62/I62*100 -> 19.25 | L62: Searle | LF62: 59 | LG62: 48 | LH62: syp | LI62: Dimenhydrinate 12.5mg/4ml | LJ62: 60ml
A63: 60 | B63: 49 | C63: INJ | D63: DIMENHYDRNATE | E63: INJ | F63: Gravinate | G63: Inj | H63: 25's | I63: 253 | J63: 215.05 | K63: =100-J63/I63*100 -> 15 | L63: Searle | LF63: 60 | LG63: 49 | LH63: INJ | LI63: DIMENHYDRNATE | LJ63: INJ
A64: 61 | B64: 50 | C64: Tab | D64: Dimenhydrinate 50mg | E64: 100's | F64: Gravinate 50mg | G64: Tab | H64: 100's | I64: 110 | J64: 88.83 | K64: =100-J64/I64*100 -> 19.24545455 | L64: Searle | ID64: Dymin | IE64: Tab | IF64: 100's | IG64: 100 | IH64: 81.6 | II64: =100-IH64/IG64*100 -> 18.4 | IJ64: Stanley Pharma | LF64: 61 | LG64: 50 | LH64: Tab | LI64: Dimenhydrinate 50mg | LJ64: 100's
A65: 62 | B65: 51 | C65: tab | D65: Domparidon 10mg | E65: 30's | DH65: Vomistop 10mg | DI65: Tab | DJ65: 50's | DK65: 148 | DL65: 28.75 | DM65: =100-DL65/DK65*100 -> 80.57432432 | DN65: Danas Pharma | EQ65: Peridone 10mg | ER65: Tab | ES65: 30's | ET65: 129 | EU65: 62 | EV65: =100-EU65/ET65*100 -> 51.9379845 | EW65: Sami | IK65: Milium | IL65: Tab | IM65: 50's | IN65: 215 | IO65: 68 | IP65: =100-IO65/IN65*100 -> 68.37209302 | IQ65: English Pharma | IY65: Domflash 10mg | IZ65: Tab | JA65: 50's | JB65: 210 | JC65: 178.5 | JD65: =100-JC65/JB65*100 -> 15 | JE65: Novamed | JM65: Motilium | JN65: Tab | JO65: 50's | JP65: 218.07 | JQ65: 172.38 | JR65: =100-JQ65/JP65*100 -> 20.95198789 | JS65: Aspin Pharma | LF65: 62 | LG65: 51 | LH65: tab | LI65: Domparidon 10mg | LJ65: 30's | LK65: Domel | LL65: Tabs | LM65: 50's | LN65: 218.08 | LO65: 49.2 | LP65: =100-LO65/LN65*100 -> 77.43947175 | LQ65: Barrett | MT65: Nomit | MU65: Tabs | MV65: 50's | MW65: 215 | MX65: 164.48 | MY65: =100-MX65/MW65*100 -> 23.49767442 | MZ65: Chas.A.Mendoza
A66: 63 | B66: 52 | C66: tab | D66: Domparidon 10mg &Cinrizine 1mg | E66: 20's | LF66: 63 | LG66: 52 | LH66: tab | LI66: Domparidon 10mg &Cinrizine 1mg | LJ66: 20's
A67: 64 | B67: 53 | C67: Susp | D67: Domparidon 1mg | E67: 120ml | IK67: Milium | IL67: Susp | IM67: 120ml | IN67: 84 | IO67: 29 | IP67: =100-IO67/IN67*100 -> 65.47619048 | IQ67: English Pharma | JM67: Motilium | JN67: Syp | JO67: 120ml | JP67: 85.2 | JQ67: 70.25 | JR67: =100-JQ67/JP67*100 -> 17.54694836 | JS67: Aspin Pharma | KP67: Sydidon | KQ67: Susp | KR67: 60ml/120ml | KS67: 42/84 | KT67: 26/35 | KU67: =100-KT67/KS67*100 ->  | KW67: Sayyad Pharma | LF67: 64 | LG67: 53 | LH67: Susp | LI67: Domparidon 1mg | LJ67: 120ml | LK67: Domel | LL67: Susp | LM67: 60mL | LN67: 42.6 | LO67: 25 | LP67: =100-LO67/LN67*100 -> 41.31455399 | LQ67: Barrett | MT67: Nomit | MU67: Susp | MV67: 60mL | MW67: 42 | MX67: 32.13 | MY67: =100-MX67/MW67*100 -> 23.5 | MZ67: Chas.A.Mendoza
A68: 65 | B68: 54 | C68: tab | D68: Itopride 50mg | E68: 10's | CF68: Ganaton 50mg | CG68: Tab | CH68: 30's | CI68: 639.55 | CJ68: 543.62 | CK68: =100-CJ68/CI68*100 -> 14.9996091 | CL68: Abbott | DO68: Regasta 50mg | DP68: Tab | DQ68: 10's | DR68: 183 | DS68: 34.5 | DT68: =100-DS68/DR68*100 -> 81.14754098 | DU68: Getz | EJ68: Dynetic 50mg | EK68: Tab | EL68: 10'S | EM68: 120 | EN68: 51 | EO68: =100-EN68/EM68*100 -> 57.5 | EP68: Ferozsons | IR68: Itotab 50mg | IS68: Tab | IT68: 10's | IU68: 150 | IV68: 48 | IW68: =100-IV68/IU68*100 -> 68 | IX68: Hiranis Pharma | LF68: 65 | LG68: 54 | LH68: tab | LI68: Itopride 50mg | LJ68: 10's
A69: 66 | B69: 55 | C69: tab | D69: Meclazine 2 HCL 25mg + Vit B6 50mg | E69: 10's | LF69: 66 | LG69: 55 | LH69: tab | LI69: Meclazine 2 HCL 25mg + Vit B6 50mg | LJ69: 10's
A70: 67 | B70: 56 | C70: Tab | D70: Metoclopramide 10mg | E70: 100's | GG70: Maxolon 10mg | GH70: Tab | GI70: 100's | GJ70: 102.86 | GK70: 84.15 | GL70: =100-GK70/GJ70*100 -> 18.18977251 | GM70: Gsk | HB70: Metomide | HC70: Tab | HD70: 100's | HE70: 102.86 | HF70: 74.32 | HG70: =100-HF70/HE70*100 -> 27.74645149 | HH70: CCL | LF70: 67 | LG70: 56 | LH70: Tab | LI70: Metoclopramide 10mg | LJ70: 100's
A71: 68 | B71: 57 | C71: Inj. | D71: Metoclopramide 10mg/ml (Amp. Of 2ml) | E71: 10's | LF71: 68 | LG71: 57 | LH71: Inj. | LI71: Metoclopramide 10mg/ml (Amp. Of 2ml) | LJ71: 10's
A72: 69 | B72: 58 | C72: Susp | D72: Metoclopramide 5mg/5ml | E72: 50ml | LF72: 69 | LG72: 58 | LH72: Susp | LI72: Metoclopramide 5mg/5ml | LJ72: 50ml
A73: 70 | B73: 59 | C73: Inj | D73: Ondenstron inj | E73: amp | AH73: Onset 4mg | AI73: Inj | AJ73: 1's | AK73: 109 | AL73: 92.65 | AM73: =100-AL73/AK73*100 -> 15 | AN73: Pharmedic | CT73: Ondansetron Sandoz/Zofran | CU73: inj | CV73: 1's/5's | CW73: 517/4525.65 | CX73: 439.45/3462.45 | CY73: =100-CX73/CW73*100 ->  | CZ73: Novartis | DF73: =100-DE73/DD73*100 ->  | LF73: 70 | LG73: 59 | LH73: Inj | LI73: Ondenstron inj | LJ73: amp
A74: 71 | B74: 60 | C74: inj | D74: Prochlorperazine 12.5mg/ml | E74: 10's | AM74: =AL74/AK74*100 ->  | LF74: 71 | LG74: 60 | LH74: inj | LI74: Prochlorperazine 12.5mg/ml | LJ74: 10's
A75: 72 | B75: 61 | C75: tab | D75: Prochlorperazine 5mg | E75: 500's | LF75: 72 | LG75: 61 | LH75: tab | LI75: Prochlorperazine 5mg | LJ75: 500's
A76: 73 | D76: (I) Drugs Acting on Cardiovascular System: | LF76: 73 | LI76: (I) Drugs Acting on Cardiovascular System:
A77: 74 | B77: 62 | C77: Tab | D77: Aliskirin 150mg/300mg | E77: 10's | LF77: 74 | LG77: 62 | LH77: Tab | LI77: Aliskirin 150mg/300mg | LJ77: 10's
A78: 75 | B78: 63 | C78: inj | D78: Amiderone HCL 150mg/3ml | E78: Amp | LF78: 75 | LG78: 63 | LH78: inj | LI78: Amiderone HCL 150mg/3ml | LJ78: Amp
A79: 76 | C79: INJ | D79: Adrenaline Injection 1:1000 | E79: Amp | LF79: 76 | LH79: INJ | LI79: Adrenaline Injection 1:1000 | LJ79: Amp
A80: 77 | B80: 64 | C80: tab | D80: Amiderone HCL 200mg | E80: 30's | LF80: 77 | LG80: 64 | LH80: tab | LI80: Amiderone HCL 200mg | LJ80: 30's
A81: 78 | B81: 65 | C81: tab | D81: Amlodipine Besylate 5mg | E81: 20's | BR81: Vespin 5mg | BS81: Tablet | BT81: 20's | BU81: 99 | BV81: 74 | BW81: =100-BV81/BU81*100 -> 25.25252525 | BX81: Amsons | HW81: Coram 5mg | HX81: Tab | HY81: 20's | HZ81: 75 | IA81: 35 | IB81: =100-IA81/HZ81*100 -> 53.33333333 | IC81: Brooks | IY81: Amilip 5mg | IZ81: Tab | JA81: 20's | JB81: 105 | JC81: 38 | JD81: =100-JC81/JB81*100 -> 63.80952381 | JE81: Novamed | KA81: Lodopin 5mg | KB81: Tab | KC81: 20's | KD81: 93.48 | KE81: 67.54 | KF81: =100-KE81/KD81*100 -> 27.74925118 | KG81: Merck | KP81: Amlosyd 5mg | KQ81: Tab | KR81: 20's | KS81: 90 | KT81: 36 | KU81: =100-KT81/KS81*100 -> 60 | KW81: Sayyad Pharma | KX81: Cabok 5mg | KY81: Tab | KZ81: 20's | LA81: 120 | LB81: 61.2 | LC81: =100-LB81/LA81*100 -> 49 | LD81: Platinum Pharma | LF81: 78 | LG81: 65 | LH81: tab | LI81: Amlodipine Besylate 5mg | LJ81: 20's | LK81: Ampress | LL81: Tabs | LM81: 20's | LN81: 142 | LO81: 34 | LP81: =100-LO81/LN81*100 -> 76.05633803 | LQ81: Barrett | LR81: Caloc | LS81: Tabs | LT81: 20's | LU81: 80 | LV81: 54.4 | LW81: =100-LV81/LU81*100 -> 32 | LX81: Bosch | NA81: Sofvasc 5mg | NB81: Tabs | NC81: 30's | ND81: 202.5 | NE81: 120 | NF81: =100-NE81/ND81*100 -> 40.74074074 | NG81: Wilson's
A82: 79 | B82: 66 | C82: tab | D82: Amlodipine Besylate10mg | E82: 20's | EQ82: Onato 10mg | ER82: Tab | ES82: 20's | ET82: 99 | EU82: 51.4 | EV82: =100-EU82/ET82*100 -> 48.08080808 | EW82: Sami | FL82: Securin 10mg | FM82: Tab | FN82: 20's | FO82: 253.58 | FP82: 69 | FQ82: =100-FP82/FO82*100 -> 72.78965218 | FR82: PharmEvo | HW82: Coram 10mg | HX82: Tab | HY82: 20's | HZ82: 150 | IA82: 45 | IB82: 70 | IC82: Brooks | IY82: Amilip 10mg | IZ82: Tab | JA82: 20's | JB82: 199 | JC82: 45 | JD82: 77.38693467 | JE82: Novamed | KA82: Lodopin 10mg | KB82: Tab | KC82: 20's | KD82: 120.36 | KE82: 92.08 | KF82: 23.49617813 | KG82: Merck | KX82: Cabok 10mg | KY82: Tab | KZ82: 20's | LA82: 180 | LB82: 91.8 | LC82: =100-LB82/LA82*100 -> 49 | LD82: Platinum Pharma | LF82: 79 | LG82: 66 | LH82: tab | LI82: Amlodipine Besylate10mg | LJ82: 20's | LK82: Ampress 10mg | LL82: Tabs | LM82: 20's | LN82: 280.01 | LO82: 44.04 | LP82: =100-LO82/LN82*100 -> 84.27199029 | LQ82: Barrett | LR82: Caloc | LS82: Tabs | LT82: 20's | LU82: 150 | LV82: 102 | LW82: 32 | LX82: Bosch | NA82: Sofvasc 10mg | NB82: Tabs | NC82: 30's | ND82: 420 | NE82: 150 | NF82: 64.28571429 | NG82: Wilson's
A83: 80 | B83: 67 | C83: tab | D83: Amlodipine10mg+Atorvastatin 10mg | E83: 10's | LF83: 80 | LG83: 67 | LH83: tab | LI83: Amlodipine10mg+Atorvastatin 10mg | LJ83: 10's
A84: 81 | B84: 68 | C84: tab | D84: Amlodipine5mg+Atorvastatin10mg/20mg | E84: 10's | LF84: 81 | LG84: 68 | LH84: tab | LI84: Amlodipine5mg+Atorvastatin10mg/20mg | LJ84: 10's
A85: 82 | B85: 69 | C85: tab | D85: Amlodipine5mg+valsartan 80mg | E85: 28's | F85: Extor 5/80mg | G85: Tab | H85: 14's | I85: 265 | J85: 145 | K85: =100-J85/I85*100 -> 45.28301887 | L85: Searle | M85: Prestor 5/80 | N85: Tab | O85: 14's | P85: 238 | Q85: 78 | R85: =100-Q85/P85*100 -> 67.22689076 | S85: Saffron | CT85: Exforge 5/80 | CU85: Tab | CV85: 28's | CW85: 1288 | CX85: 1040 | CY85: =100-CX85/CW85*100 -> 19.25465839 | CZ85: Novartis | DF85: =100-DE85/DD85*100 ->  | DO85: Covam 5/80 | DP85: Tab | DQ85: 14's | DR85: 252 | DS85: 119.01 | DT85: =100-DS85/DR85*100 -> 52.77380952 | DU85: Getz | EC85: Amstan 5/80 | ED85: Tab | EE85: 14's | EF85: 256.31 | EG85: 140 | EH85: =100-EG85/EF85*100 -> 45.37864305 | EI85: Scilife Pharma | EJ85: Convence 5/80 | EK85: Tab | EL85: 10's | EM85: 251.76 | EN85: 128 | EO85: =100-EN85/EM85*100 -> 49.15792819 | EP85: Ferozsons | HB85: Valam 5/80mg | HC85: Tab | HD85: 14's | HE85: 252 | HF85: 182.07 | HG85: =100-HF85/HE85*100 -> 27.75 | HH85: CCL | LF85: 82 | LG85: 69 | LH85: tab | LI85: Amlodipine5mg+valsartan 80mg | LJ85: 28's | NA85: Sofvasc V 5/80mg | NB85: Tabs | NC85: 14's | ND85: 375 | NE85: 154 | NF85: =100-NE85/ND85*100 -> 58.93333333 | NG85: Wilson's
A86: 83 | B86: 70 | C86: Tab | D86: Asprin 150mg | E86: 30's | LF86: 83 | LG86: 70 | LH86: Tab | LI86: Asprin 150mg | LJ86: 30's
A87: 84 | B87: 71 | C87: Tab | D87: Asprin 75mg | E87: 30's | EX87: Loprin 75mg | EY87: Tab | EZ87: 30's | FA87: 33 | FB87: 25.25 | FC87: =100-FB87/FA87*100 -> 23.48484848 | FD87: Highnoon | LF87: 84 | LG87: 71 | LH87: Tab | LI87: Asprin 75mg | LJ87: 30's
A88: 85 | B88: 72 | C88: tab | D88: Atenolol 50mg | E88: 20's | EJ88: Atenorm 50mg | EK88: Tab | EL88: 14's | EM88: 36.8 | EN88: 21 | EO88: =100-EN88/EM88*100 -> 42.93478261 | EP88: Ferozsons | IY88: B-Loc 50mg | IZ88: Tab | JA88: 20's | JB88: 74 | JC88: 21.25 | JD88: =100-JC88/JB88*100 -> 71.28378378 | JE88: Novamed | KX88: Cardaxen | KY88: Tab | KZ88: 20's | LA88: 85 | LB88: 43.35 | LC88: =100-LB88/LA88*100 -> 49 | LD88: Platinum Pharma | LF88: 85 | LG88: 72 | LH88: tab | LI88: Atenolol 50mg | LJ88: 20's | LR88: Atlin 50mg | LS88: Tabs | LT88: 20's | LU88: 70 | LV88: 47.6 | LW88: =100-LV88/LU88*100 -> 32 | LX88: Bosch
A89: 86 | B89: 73 | C89: Tab | D89: Atorvastatin 10mg | E89: 10 | LF89: 86 | LG89: 73 | LH89: Tab | LI89: Atorvastatin 10mg | LJ89: 10
A90: 87 | B90: 74 | C90: Tab | D90: Atorvastatin 20mg | E90: 10 | BY90: Descol 20mg | BZ90: Tab | CA90: 10's | CB90: 190 | CC90: 37 | CD90: =100-CC90/CB90*100 -> 80.52631579 | CE90: Nabi Qasim | DO90: Lipiget 20mg | DP90: Tab | DQ90: 10'S | DR90: 320 | DS90: 53.99 | DT90: =100-DS90/DR90*100 -> 83.128125 | DU90: Getz | EX90: Lipirex 20mg | EY90: Tab | EZ90: 10's | FA90: 310 | FB90: 52.7 | FC90: =100-FB90/FA90*100 -> 83 | FD90: Highnoon | IY90: Lipilow 20mg | IZ90: Tab | JA90: 10's | JB90: 240 | JC90: 47 | JD90: =100-JC90/JB90*100 -> 80.41666667 | JE90: Novamed | LF90: 87 | LG90: 74 | LH90: Tab | LI90: Atorvastatin 20mg | LJ90: 10 | LK90: Sensicon | LL90: Tabs | LM90: 10's | LN90: 243.44 | LO90: 45.05 | LP90: =100-LO90/LN90*100 -> 81.49441341 | LQ90: Barrett | LR90: Orva | LS90: Tabs | LT90: 28's | LU90: 250 | LV90: 159.38 | LW90: =100-LV90/LU90*100 -> 36.248 | LX90: Bosch | NH90: winstor 20MG | NI90: Tabs | NJ90: 10's | NK90: 220 | NL90: 168.4 | NM90: =100-NL90/NK90*100 -> 23.45454545 | NN90: Sanofi
A91: 88 | B91: 75 | C91: Tab | D91: Atorvastatin 40mg | E91: 10 | LF91: 88 | LG91: 75 | LH91: Tab | LI91: Atorvastatin 40mg | LJ91: 10
A92: 89 | B92: 76 | C92: tab | D92: Bisoprolol 5mg | E92: 20's | KA92: Concor 5mg | KB92: Tab | KC92: 14's | KD92: 158.36 | KE92: 121.15 | KF92: =100-KE92/KD92*100 -> 23.49709523 | KG92: Merck | LF92: 89 | LG92: 76 | LH92: tab | LI92: Bisoprolol 5mg | LJ92: 20's | LK92: Barilol | LL92: Tabs | LM92: 20's | LN92: 126.5 | LO92: 30.96 | LP92: =100-LO92/LN92*100 -> 75.5256917 | LQ92: Barrett
A93: 90 | B93: 77 | C93: Tab | D93: Captopril 25mg/12.5mg | E93: 20's | BJ93: Valopril 25mg | BK93: Tablet | BL93: 20's | BM93: 113 | BN93: 93.17 | BP93: =100-BN93/BM93*100 -> 17.54867257 | BQ93: Valor | JT93: Capoten 25mg | JU93: Tab | JV93: 20's | JW93: 153.3 | JX93: 123.8 | JY93: =100-JX93/JW93*100 -> 19.24331376 | JZ93: Gsk (M& phipps) | LF93: 90 | LG93: 77 | LH93: Tab | LI93: Captopril 25mg/12.5mg | LJ93: 20's
A94: 91 | B94: 78 | C94: Tab | D94: Carvedilol 6.25/12.5/25mg | E94: 30's | BY94: Carpro 6.25 mg | BZ94: Tablet | CA94: 30'S | CB94: 180 | CC94: 69.5 | CD94: =100-CC94/CB94*100 -> 61.38888889 | CE94: Nabi Qasim | EJ94: Carved 6.25/12.5mg | EK94: Tablet | EL94: 30'S | EM94: 163.2/326.41 | EN94: 51/137 | EO94: =100-EN94/EM94*100 ->  | EP94: Ferozsons | HP94: Dilatrend 6.25mg/12.5mg | HQ94: Tab | HR94: 10's | HS94: 97/194 | HT94: 78.33/156.66 | HU94: =100-HT94/HS94*100 ->  | HV94: Martin Dow | LF94: 91 | LG94: 78 | LH94: Tab | LI94: Carvedilol 6.25/12.5/25mg | LJ94: 30's
A95: 92 | B95: 79 | C95: Tab | D95: Clopedogril+Asprin | E95: 30's | M95: Plagril Plus | N95: Tab | O95: 10's | P95: 147.9 | Q95: 73 | R95: =100-Q95/P95*100 -> 50.6423259 | S95: Saffron | EC95: Norplat-S | ED95: Tab | EE95: 10's | EF95: 147 | EG95: 80 | EH95: =100-EG95/EF95*100 -> 45.57823129 | EI95: Scilife Pharma | HB95: Noclot-EA | HC95: Tab | HD95: 10's | HE95: 147.9 | HF95: 106.86 | HG95: =100-HF95/HE95*100 -> 27.7484787 | HH95: CCL | IY95: Seaclop-AP 75/75mg | IZ95: Tab | JA95: 10's | JB95: 145 | JC95: 44 | JD95: =100-JC95/JB95*100 -> 69.65517241 | JE95: Novamed | LF95: 92 | LG95: 79 | LH95: Tab | LI95: Clopedogril+Asprin | LJ95: 30's | LK95: Clotnil Plus | LL95: Tabs | LM95: 10's | LN95: 126.79 | LO95: 55 | LP95: =100-LO95/LN95*100 -> 56.62118464 | LQ95: Barrett | LR95: Ogrel Plus 81 | LS95: Tabs | LT95: 28's | LU95: 125 | LV95: 85 | LW95: =100-LV95/LU95*100 -> 32 | LX95: Bosch
A96: 93 | B96: 80 | C96: Tab | D96: Clopidogrel 75 mg | E96: 10's | BY96: Deplat 75mg | BZ96: Tablet | CA96: 10's | CB96: 108.12 | CC96: 43 | CD96: =100-CC96/CB96*100 -> 60.22937477 | CE96: Nabi Qasim | EC96: Norplat 75mg | ED96: Tab | EE96: 10's | EF96: 350 | EG96: 190 | EH96: =100-EG96/EF96*100 -> 45.71428571 | EI96: Scilife Pharma | FL96: Lowplat 75mg | FM96: Tab | FN96: 10's | FO96: 142.8 | FP96: 65 | FQ96: =100-FP96/FO96*100 -> 54.48179272 | FR96: Pharmevo | FS96: Locril 75mg | FT96: Tab | FU96: 50's | FV96: 200 | FW96: 161.5 | FX96: =100-FW96/FV96*100 -> 19.25 | FY96: Mactor | HB96: Noclot | HC96: Tab | HD96: 20's | HE96: 285.61 | HF96: 206.353 | HG96: =100-HF96/HE96*100 -> 27.75007878 | HH96: CCL | IY96: Seaclop 75mg | IZ96: Tab | JA96: 10's | JB96: 140 | JC96: 38 | JD96: 72.85714286 | JE96: Novamed | KP96: Sydoclop | KQ96: Tab | KR96: 10's | KS96: 140 | KT96: 56 | KU96: =100-KT96/KS96*100 -> 60 | KW96: Sayyad Pharma | KX96: Clopido | KY96: Tab | KZ96: 10's | LA96: 120 | LB96: 61.2 | LC96: =100-LB96/LA96*100 -> 49 | LD96: Platinum Pharma | LF96: 93 | LG96: 80 | LH96: Tab | LI96: Clopidogrel 75 mg | LJ96: 10's | LK96: Clotnil | LL96: Tabs | LM96: 10's | LN96: 132.6 | LO96: 41.26 | LP96: 68.88386124 | LQ96: Barrett | LR96: Ogrel | LS96: Tabs | LT96: 28's | LU96: 120 | LV96: 81.6 | LW96: 32 | LX96: Bosch | NA96: Pletwil | NB96: Tabs | NC96: 10's | ND96: 140 | NE96: 35 | NF96: =100-NE96/ND96*100 -> 75 | NG96: Wilson's | NH96: plavix 75mg | NI96: Tabs | NJ96: 28's | NK96: 700 | NL96: 535.64 | NM96: =100-NL96/NK96*100 -> 23.48 | NN96: Sanofi
A97: 94 | B97: 81 | C97: tab | D97: Digoxin 0.25mg | E97: 100's | LF97: 94 | LG97: 81 | LH97: tab | LI97: Digoxin 0.25mg | LJ97: 100's
A98: 95 | B98: 82 | C98: Tab | D98: Diltiazem 30mg | E98: 100's | LF98: 95 | LG98: 82 | LH98: Tab | LI98: Diltiazem 30mg | LJ98: 100's
A99: 96 | B99: 83 | C99: Tab | D99: Diltiazem 60mg | E99: 100's | DA99: Dilzem 60mg | DB99: Tab | DC99: 30's | DD99: 237.39 | DE99: 187.66 | DF99: =100-DE99/DD99*100 -> 20.9486499 | DG99: Pfizer | LF99: 96 | LG99: 83 | LH99: Tab | LI99: Diltiazem 60mg | LJ99: 100's
A100: 97 | B100: 84 | C100: tab | D100: Diosmmin 450 mg+ hesperidine 50mg | LF100: 97 | LG100: 84 | LH100: tab | LI100: Diosmmin 450 mg+ hesperidine 50mg | NV100: Daflon 500mg | NW100: Tabs | NX100: 20's | NY100: 331.51 | NZ100: 281.78 | OA100: =100-NZ100/NY100*100 -> 15.00105578 | OB100: servier
A101: 98 | B101: 85 | C101: inj | D101: Dobutamine 250mg | E101: Vial/20ml | LF101: 98 | LG101: 85 | LH101: inj | LI101: Dobutamine 250mg | LJ101: Vial/20ml
A102: 99 | B102: 86 | C102: inj | D102: Dopamine 40mg/ml, Vial of 5ml | E102: Vial/20ml | LF102: 99 | LG102: 86 | LH102: inj | LI102: Dopamine 40mg/ml, Vial of 5ml | LJ102: Vial/20ml
A103: 100 | B103: 87 | C103: tab | D103: Enalaprin Maleate 10 mg | E103: 20 | BC103: Zepres 10mg | BD103: Tab | BE103: 20's | BF103: 126.5 | BG103: 96 | BH103: =100-BG103/BF103*100 -> 24.11067194 | BI103: Asian Continental | LF103: 100 | LG103: 87 | LH103: tab | LI103: Enalaprin Maleate 10 mg | LJ103: 20 | NA103: Cardiotec | NB103: tabs | NC103: 20's | ND103: 86.38 | NE103: 64 | NF103: =100-NE103/ND103*100 -> 25.90877518 | NG103: Wilson's
A104: 101 | B104: 88 | C104: tab | D104: Enalaprin Maleate 5 mg | E104: 20 | BC104: Zepres 5mg | BD104: Tab | BE104: 20's | BF104: 64.4 | BG104: 49 | BH104: 23.91304348 | BI104: Asian Continental | LF104: 101 | LG104: 88 | LH104: tab | LI104: Enalaprin Maleate 5 mg | LJ104: 20
A105: 102 | B105: 89 | C105: tab | D105: Glyceryl Trinitrate:2.6mg | E105: 30's | F105: Sustac 2.6 | G105: Tab | H105: 30's | I105: 181 | J105: 100 | K105: =100-J105/I105*100 -> 44.75138122 | L105: Searle | BJ105: Cornit 2.6mg | BK105: Tablet | BL105: 30's | BM105: 160 | BN105: 131.92 | BP105: =100-BN105/BM105*100 -> 17.55 | BQ105: Valor | LF105: 102 | LG105: 89 | LH105: tab | LI105: Glyceryl Trinitrate:2.6mg | LJ105: 30's
A106: 103 | B106: 90 | C106: tab | D106: Glyceryl Trinitrate:6.4mg | E106: 30's | F106: Sustac 6.4 | G106: Tab | H106: 30's | I106: 214 | J106: 118.24 | K106: =100-J106/I106*100 -> 44.74766355 | L106: Searle | AM106: =AL106/AK106*100 ->  | LF106: 103 | LG106: 90 | LH106: tab | LI106: Glyceryl Trinitrate:6.4mg | LJ106: 30's
A107: 104 | B107: 91 | C107: patches | D107: Glyceryltrintrite patches 2.5mg | E107: 10's | LF107: 104 | LG107: 91 | LH107: patches | LI107: Glyceryltrintrite patches 2.5mg | LJ107: 10's
A108: 105 | B108: 92 | C108: patches | D108: Glyceryltrintrite patches 5mg | E108: 10's | LF108: 105 | LG108: 92 | LH108: patches | LI108: Glyceryltrintrite patches 5mg | LJ108: 10's
A109: 106 | C109: inj | D109: Nitroglycerin 5mg/25mg | E109: 1'S | LF109: 106 | LH109: inj | LI109: Nitroglycerin 5mg/25mg | LJ109: 1'S
A110: 107 | B110: 93 | C110: inj | D110: Hydralazine | E110: amp | LF110: 107 | LG110: 93 | LH110: inj | LI110: Hydralazine | LJ110: amp
A111: 108 | B111: 94 | C111: tab | D111: Indapamide Hemihydrate 2.5 mg | E111: 30's | LF111: 108 | LG111: 94 | LH111: tab | LI111: Indapamide Hemihydrate 2.5 mg | LJ111: 30's
A112: 109 | B112: 95 | C112: Tab | D112: Irbisartan+hydrochlorothaizide 150/12.5mg | E112: 10's | LF112: 109 | LG112: 95 | LH112: Tab | LI112: Irbisartan+hydrochlorothaizide 150/12.5mg | LJ112: 10's
A113: 110 | B113: 96 | C113: Tab | D113: Irbisartan+hydrochlorothaizide 300/25mg | E113: 10's | LF113: 110 | LG113: 96 | LH113: Tab | LI113: Irbisartan+hydrochlorothaizide 300/25mg | LJ113: 10's | LK113: Irecon-H | LL113: Tabs | LM113: 10's | LN113: 330.01 | LO113: 77 | LP113: =100-LO113/LN113*100 -> 76.66737372 | LQ113: Barrett
A114: 111 | B114: 97 | C114: Tab | D114: Isocorbide Dinitrate 5mg (Sublingual) OR Glyceryl Trinitrate | E114: 100's | LF114: 111 | LG114: 97 | LH114: Tab | LI114: Isocorbide Dinitrate 5mg (Sublingual) OR Glyceryl Trinitrate | LJ114: 100's
A115: 112 | B115: 98 | C115: tab | D115: Isosorbide Dinitrate 10mg | E115: 100's | LF115: 112 | LG115: 98 | LH115: tab | LI115: Isosorbide Dinitrate 10mg | LJ115: 100's
A116: 113 | B116: 99 | C116: inj | D116: Isosorbide Dinitrate 10mg/10ml | E116: Amp | LF116: 113 | LG116: 99 | LH116: inj | LI116: Isosorbide Dinitrate 10mg/10ml | LJ116: Amp
A117: 114 | B117: 100 | C117: Tab | D117: Isosorbide Mononitrate 20mg | E117: 20's | HP117: Ismo -20 | HQ117: Tab | HR117: 20's | HS117: 88 | HT117: 71.06 | HU117: =100-HT117/HS117*100 -> 19.25 | HV117: Martin Dow | LF117: 114 | LG117: 100 | LH117: Tab | LI117: Isosorbide Mononitrate 20mg | LJ117: 20's
A118: 115 | B118: 101 | C118: inj | D118: Labetalol | E118: amp | LF118: 115 | LG118: 101 | LH118: inj | LI118: Labetalol | LJ118: amp
A119: 116 | B119: 102 | C119: Tab | D119: Lisinopril (As Dihydrate) 10mg | E119: 20's | BJ119: Lisopril 10mg | BK119: Tablet | BL119: 30's | BM119: 400 | BN119: 329.8 | BP119: =100-BN119/BM119*100 -> 17.55 | BQ119: Valor | LF119: 116 | LG119: 102 | LH119: Tab | LI119: Lisinopril (As Dihydrate) 10mg | LJ119: 20's | LR119: Corace | LS119: Tabs | LT119: 20's | LU119: 154 | LV119: 104.72 | LW119: =100-LV119/LU119*100 -> 32 | LX119: Bosch
A120: 117 | B120: 103 | C120: Tab | D120: Losartan Potassium 50 mg | E120: 20's | M120: Sar-K 50mg | N120: Tab | O120: 20's | P120: 204 | Q120: 56 | R120: =100-Q120/P120*100 -> 72.54901961 | S120: Saffron | BY120: Bepsar 50mg | BZ120: Tab | CA120: 20's | CB120: 220 | CC120: 57.75 | CD120: =100-CC120/CB120*100 -> 73.75 | CE120: Nabi Qasim | EJ120: Xavor 50mg | EK120: Tab | EL120: 10's | EM120: 157.59 | EN120: 28.5 | EO120: =100-EN120/EM120*100 -> 81.91509614 | EP120: Ferozsons | FL120: Tansin 50mg | FM120: Tab | FN120: 10's | FO120: 153 | FP120: 28.3 | FQ120: =100-FP120/FO120*100 -> 81.50326797 | FR120: PharmEvo | GU120: Zostat 50mg | GV120: Tab | GW120: 20's | GX120: 255 | GY120: 140 | GZ120: =100-GY120/GX120*100 -> 45.09803922 | HA120: Himont | HB120: Normopress | HC120: Tab | HD120: 10;s | HE120: 150 | HF120: 108.375 | HG120: =100-HF120/HE120*100 -> 27.75 | HH120: CCL | KX120: Losar-K | KY120: Tab | KZ120: 20's | LA120: 250 | LB120: 127.5 | LC120: =100-LB120/LA120*100 -> 49 | LD120: Platinum Pharma | LF120: 117 | LG120: 103 | LH120: Tab | LI120: Losartan Potassium 50 mg | LJ120: 20's | LK120: Sartan | LL120: Tabs | LM120: 10's | LN120: 224.41 | LO120: 40.8 | LP120: =100-LO120/LN120*100 -> 81.81899202 | LQ120: Barrett | NA120: A2A | NB120: Tabs | NC120: 20's | ND120: 350 | NE120: 80 | NF120: =100-NE120/ND120*100 -> 77.14285714 | NG120: Wilson's
A121: 118 | B121: 104 | C121: tab | D121: Losartan Potassium 50 mg + Hydrochlorthiazide 12.5mg | E121: 20's | M121: Sar-K Plus | N121: Tab | O121: 20's | P121: 209 | Q121: 70 | R121: =100-Q121/P121*100 -> 66.50717703 | S121: Saffron | EJ121: Xavor DIU | EK121: Tab | EL121: 10's | EM121: 156.2 | EN121: 29.5 | EO121: =100-EN121/EM121*100 -> 81.11395647 | EP121: Ferozsons | FL121: DIU Tansin | FM121: Tab | FN121: 10's | FO121: 162.29 | FP121: 29.6 | FQ121: =100-FP121/FO121*100 -> 81.76104504 | FR121: PharmEvo | HB121: Normozide | HC121: Tab | HD121: 10;s | HE121: 155 | HF121: 11.9875 | HG121: =100-HF121/HE121*100 -> 92.26612903 | HH121: CCL | KX121: Losar Plus | KY121: Tab | KZ121: 20's | LA121: 260 | LB121: 110.5 | LC121: 57.5 | LD121: Platinum Pharma | LF121: 118 | LG121: 104 | LH121: tab | LI121: Losartan Potassium 50 mg + Hydrochlorthiazide 12.5mg | LJ121: 20's | LK121: Sartan H | LL121: Tabs | LM121: 10's | LN121: 238.65 | LO121: 44.5 | LP121: 81.35344647 | LQ121: Barrett | NA121: C0-A2A | NB121: Tabs | NC121: 20's | ND121: 300 | NE121: 84 | NF121: 72 | NG121: Wilson's
A122: 119 | B122: 105 | C122: Tab | D122: Methyldopa 250mg | E122: 100's | LF122: 119 | LG122: 105 | LH122: Tab | LI122: Methyldopa 250mg | LJ122: 100's
A123: 120 | B123: 106 | C123: Tablet | D123: Nebivolol 2.5 /5 10mg | E123: 14s | DO123: Nebil 2.5/ 5mg | DP123: Tab | DQ123: 14's | DR123: 97.50/163 | DS123: 63.01/97 | DT123: =100-DS123/DR123*100 ->  | DU123: Getz | LF123: 120 | LG123: 106 | LH123: Tablet | LI123: Nebivolol 2.5 /5 10mg | LJ123: 14s
A124: 121 | B124: 107 | C124: Tab | D124: Metoprolal 100mg | E124: 30's | CT124: Mepresor 100mg | CU124: Tab | CV124: 30's | CW124: 247.94 | CX124: 189.67 | CY124: =100-CX124/CW124*100 -> 23.50165363 | CZ124: Novartis | LF124: 121 | LG124: 107 | LH124: Tab | LI124: Metoprolal 100mg | LJ124: 30's
A125: 122 | B125: 108 | C125: inj | D125: Metoprolol Tartrate 5 mg | E125: Amp | CT125: Lopresor | CU125: Inj | CV125: 5's | CW125: 298.07 | CX125: 253.36 | CY125: =100-CX125/CW125*100 -> 14.99983225 | CZ125: Novartis | LF125: 122 | LG125: 108 | LH125: inj | LI125: Metoprolol Tartrate 5 mg | LJ125: Amp
... 156 more rows
